Cogmind - Beta 14 @@@ ROGUE MODE // 2024.08.28 @ 02:03:49 Player: Some Pennies Result: Escaped! Performance ------------- Evolutions (9) 4500 Regions Visited (30) 6000 Robots Destroyed (209) 1045 Value Destroyed (5540) 5540 Prototype IDs (104) 2080 Alien Tech Used (1) 200 Bonus (18457) 18457 TOTAL SCORE: 37822 Bonus ------- Unstable Evolution 4500 High Alert Combat Kills 426 Follower Combat Kills 1738 Entered Garrisons 200 Aligned with FarCom 300 Met Data Miner 300 Met Imprinter 300 Acquired ECA 300 Met Zhirov 300 Met R17 at Cetus 500 Win 3000 Challenge Win 7000 Friendly Fire -407 Cogmind --------- Core Integrity 1509/1600 Matter 131/300 Energy 231/340 System Corruption 0% Temperature Cool (20) Movement Flying (31) Location To Epsilon Eridani Parts ------- > --- POWER (1) -------- Particle Reactor > --- PROPULSION (9) --- Nuclear Pulse Array Q-thruster Impulse Thruster Array Impulse Thruster Array Impulse Thruster Array > --- UTILITY (9) ------ Medium Storage Unit Improved Terrain Scanner Experimental Terrain Scan Processor Experimental Transmission Jammer Advanced Hacking Suite Advanced Hacking Suite Experimental Hacking Suite Improved System Shield Improved System Shield > --- WEAPON (6) ------- Enhanced Nova Cannon Advanced Datajack Spear Enhanced Force Lance > --- INVENTORY (10) --- Micro Antimatter Reactor ECM Suite Graphene Brace Transdimensional Reconstructor Quantum Rifle Quantum Rifle Compact HERF Cannon Enhanced Nova Cannon Datajack Peak State ------------ > --- POWER ------------ Particle Reactor > --- PROPULSION ------- Nuclear Pulse Array Q-thruster Impulse Thruster Array Impulse Thruster Array Impulse Thruster Array > --- UTILITY ---------- Medium Storage Unit Improved Terrain Scanner Experimental Terrain Scan Processor Experimental Transmission Jammer Advanced Hacking Suite Advanced Hacking Suite Experimental Hacking Suite Improved System Shield Improved System Shield > --- WEAPON ----------- Enhanced Nova Cannon Advanced Datajack Spear Enhanced Force Lance > --- INVENTORY -------- Micro Antimatter Reactor Terrain Scanner ECM Suite Graphene Brace Transdimensional Reconstructor Quantum Rifle Quantum Rifle Compact HERF Cannon Enhanced Nova Cannon Datajack [Rating: 162] Favorites ----------- Power Deuterium Engine Engine Deuterium Engine Power Core Light Fission Core Reactor Light Antimatter Reactor Propulsion Light Treads Treads Light Treads Leg Improved Aluminum Leg Hover Unit Gravmag Array Flight Unit Cooled VTOL Module Utility Hacking Suite Device Shield Generator Storage Huge Storage Unit Processor Experimental Terrain Scan Processor Hackware Hacking Suite Protection Improved Light Armor Plating Weapon Light Cannon Energy Gun Advanced Beam Rifle Energy Cannon Enhanced Nova Cannon Ballistic Gun Minigun Ballistic Cannon Light Cannon Launcher Rocket Launcher Special Weapon Plasma Cutter Impact Weapon Hammer Slashing Weapon Scythe Piercing Weapon Heavy Pick Special Melee Weapon Advanced Datajack Build | -11 -10 -10 -10 -9 -8 -8 -8 -7 -7 -7 -7 -6 -6 -6 -6 -6 -5 -5 -5 -5 -5 -5 -4 -4 -4 -4 -3 -3 -2 -1 ------- Run | Yrd Mat Min Exi Min Mat Sto Gar Fac Low Low Dat Pro Fac Low Low Zio Pro Fac Ext Cet Arc Hub Fac Upp Upp Zhi Pro Res Res Acc Slots Evolved 18 | . . . . . 4 . . 2 . . . . 2 . . . . 2 . . . . 2 . . . . 2 2 2 Power . | . . . . . . . . . . . . . . . . . . . . . . . . . . . . . . . Propulsion 7 | . . . . . 2 . . 1 . . . . . . . . . . . . . . 1 . . . . 1 1 1 Utility 7 | . . . . . 2 . . 1 . . . . 1 . . . . 1 . . . . 1 . . . . 1 . . Weapon 4 | . . . . . . . . . . . . . 1 . . . . 1 . . . . . . . . . . 1 1 Parts Attached 415 | 8 10 4 . 2 49 44 14 33 8 . . 2 52 . 5 1 6 40 3 4 21 1 39 . . 6 13 31 10 9 Power 35 | 1 2 3 . . 1 4 . 5 . . . 1 6 . . . . 2 1 . . 1 3 . . . 2 1 . 2 Engine 8 | 1 2 2 . . 1 1 . . . . . . . . . . . . . . . . . . . . 1 . . . Core 20 | . . 1 . . . 3 . 5 . . . 1 6 . . . . 2 1 . . 1 . . . . . . . . Reactor 7 | . . . . . . . . . . . . . . . . . . . . . . . 3 . . . 1 1 . 2 Propulsion 97 | 2 . . . . 14 10 5 11 2 . . 1 10 . . 1 . 6 . . 8 . 8 . . 3 2 7 6 1 Treads 30 | 2 . . . . 14 9 4 . . . . . . . . . . . . . 1 . . . . . . . . . Leg 1 | . . . . . . . . 1 . . . . . . . . . . . . . . . . . . . . . . Wheel . | . . . . . . . . . . . . . . . . . . . . . . . . . . . . . . . Hover 8 | . . . . . . 1 . 1 . . . . . . . . . . . . . . . . . . . 6 . . Flight 58 | . . . . . . . 1 9 2 . . 1 10 . . 1 . 6 . . 7 . 8 . . 3 2 1 6 1 Utility 161 | 3 5 . . . 17 7 5 8 4 . . . 20 . 5 . . 21 1 1 7 . 26 . . 3 7 14 2 5 Device 72 | 2 2 . . . 5 5 4 . 2 . . . 7 . 2 . . 10 1 . 3 . 14 . . . 5 7 . 3 Storage 11 | 1 1 . . . . . . 2 . . . . . . . . . 1 . . . . 1 . . . 2 1 1 1 Processor 3 | . . . . . . . . . . . . . . . . . . 1 . . . . . . . 1 . . . 1 Hackware 25 | . . . . . 2 . . 4 . . . . 3 . 1 . . 3 . 1 4 . 1 . . 1 . 4 1 . Protection 50 | . 2 . . . 10 2 1 2 2 . . . 10 . 2 . . 6 . . . . 10 . . 1 . 2 . . Artifact . | . . . . . . . . . . . . . . . . . . . . . . . . . . . . . . . Weapon 122 | 2 3 1 . 2 17 23 4 9 2 . . . 16 . . . 6 11 1 3 6 . 2 . . . 2 9 2 1 Energy Gun 20 | 1 . . . . 3 6 2 1 . . . . . . . . . 1 . 2 1 . . . . . . 3 . . Energy Cannon 14 | . . . . . . 1 . 1 . . . . 9 . . . . 1 . . . . . . . . 1 . . 1 Ballistic Gun 23 | 1 . . . 2 8 12 . . . . . . . . . . . . . . . . . . . . . . . . Ballistic Cannon 22 | . 3 1 . . . . . . . . . . . . . . 6 7 1 . 1 . 1 . . . . 2 . . Launcher 13 | . . . . . 3 3 2 1 1 . . . . . . . . . . . . . . . . . 1 2 . . Special Weapon 6 | . . . . . 1 1 . . . . . . 4 . . . . . . . . . . . . . . . . . Impact Weapon 4 | . . . . . 1 . . 2 . . . . . . . . . 1 . . . . . . . . . . . . Slashing Weapon 4 | . . . . . . . . . . . . . 1 . . . . 1 . . 1 . 1 . . . . . . . Piercing Weapon 6 | . . . . . . . . 2 1 . . . 1 . . . . . . . . . . . . . . . 2 . Special Melee Weapon 10 | . . . . . 1 . . 2 . . . . 1 . . . . . . 1 3 . . . . . . 2 . . Unidentified Prototypes 29 | . . . . . 3 5 . 2 1 . . . 2 . . . 2 9 . 1 . . . . . 1 . 1 1 1 Parts Lost 35 | . 1 . . . 3 1 3 . 1 . . . 1 . . . . 2 . . . 3 2 . . . 14 4 . . Power 7 | . 1 . . . . 1 . . . . . . . . . . . . . . . 2 . . . . 3 . . . Propulsion 9 | . . . . . . . 1 . . . . . . . . . . 1 . . . 1 . . . . 5 1 . . Utility 11 | . . . . . 3 . 2 . . . . . . . . . . . . . . . . . . . 5 1 . . Weapon 8 | . . . . . . . . . 1 . . . 1 . . . . 1 . . . . 2 . . . 1 2 . . Highest Loss Streak 9 | . 1 . . . 2 1 1 . 1 . . . 1 . . . . 1 . . . 2 1 . . . 9 3 . . To Critical Strikes . | . . . . . . . . . . . . . . . . . . . . . . . . . . . . . . . Average Slot Usage (%) 93 | . 99 99 76 77 98 99 94 83 98 92 92 92 92 93 93 93 93 86 88 92 95 100 90 84 84 82 81 77 69 73 Engine 5 | . 13 13 14 14 9 3 9 . . . . . . . . . . . . . . . . . . . 2 . . . Core 2 | . . . . . . 5 . 6 7 7 7 7 6 6 6 6 6 5 5 5 5 5 . . . . . . . . Treads 19 | . 28 28 28 28 34 35 31 . . . . . . . . . . . . . . . . . . . . . . . Flight 9 | . . . . . . . . 18 38 38 38 38 32 33 33 33 33 29 29 29 24 29 26 26 26 24 25 1 16 18 Device 4 | . 2 . . . 8 9 10 . . . . . 1 . . . . 2 5 5 1 . 2 . . . 7 12 . 4 Storage 8 | . 14 14 14 14 9 9 9 7 7 7 7 7 6 6 6 6 6 5 5 5 5 5 5 5 5 5 7 3 4 4 Hackware 13 | . . . . . 7 9 9 28 23 23 23 23 26 26 26 26 26 25 23 27 32 35 31 31 31 30 17 18 29 23 Protection 7 | . 11 14 14 14 10 9 6 . 7 7 7 7 4 6 5 6 6 4 5 . . . 2 5 5 5 1 1 . . Energy Gun 2 | . 2 . . . 4 3 16 . . . . . . . . . . . . . 1 . . . . . . 1 . . Ballistic Gun 4 | . 2 . . 6 13 13 . . . . . . . . . . . . . . . . . . . . . . . . Ballistic Cannon 6 | . 23 28 4 . . . . . . . . . . . . . . 1 5 5 6 5 4 5 5 5 4 6 . . Slashing Weapon 1 | . . . . . . . . . . . . . . 6 6 6 6 4 5 5 3 5 5 5 5 5 4 . . . Special Melee Weapon 1 | . . . . . . . . 6 5 . . . 2 6 6 6 6 3 . 3 8 11 6 . . . . 3 4 4 Peak Build Rating 162 | 9 12 15 15 16 30 38 44 53 54 50 50 50 62 56 57 57 68 93 88 99 107 102 120 100 100 111 119 137 138 162 Average Rating 46 | 6 10 13 13 13 27 32 36 42 52 50 50 50 55 55 56 57 59 67 87 90 97 101 108 100 100 104 108 123 131 151 On Entrance 59 | . 7 12 15 13 16 29 38 36 52 50 50 50 50 56 56 57 57 59 85 88 91 102 89 100 100 100 111 48 100 138 Naked Turns . | . . . . . . . . . . . . . . . . . . . . . . . . . . . . . . . Heaviest Build 110 | 13 98 102 102 101 110 103 103 98 27 21 21 21 26 23 23 23 23 29 29 32 43 27 36 34 34 34 36 70 39 54 Greatest Support 84 | 40 40 40 40 40 80 84 84 62 25 25 25 35 35 26 26 26 25 29 29 29 29 29 37 36 36 39 51 76 61 69 Greatest Overweight (x) 14 | . 2 2 2 2 2 1 2 4 1 . . . 1 . . . . 1 9 1 14 8 . . . 1 . 1 . . Average Overweight (x) . | . 1 2 2 2 1 1 1 . . . . . . . . . . . . . 2 . . . . . . . . . Largest Inventory Capacity 25 | 8 25 25 25 25 25 25 25 25 10 10 10 10 10 10 10 10 10 10 10 10 10 10 10 10 10 10 10 10 10 10 Average Capacity 18 | 7 23 25 25 25 25 25 25 8 10 10 10 10 10 10 10 10 10 10 10 10 10 10 10 10 10 10 10 8 10 9 Most Carried 25 | 6 25 25 25 25 25 25 25 25 10 10 10 10 10 10 10 10 10 10 10 10 10 10 10 10 10 10 10 10 10 10 Average Carried 18 | 4 22 24 24 24 24 24 24 8 10 10 10 10 9 9 9 10 9 9 10 10 9 9 9 10 10 9 9 8 8 9 Final Capacity 25 | 8 25 25 25 25 25 25 25 10 10 10 10 10 10 10 10 10 10 10 10 10 10 10 10 10 10 10 10 10 10 10 Final Carried 25 | 6 25 25 25 23 25 25 25 10 10 10 10 10 10 10 10 10 10 10 10 10 10 9 10 10 10 10 8 10 10 9 Class Distribution -------------------- 33% | Mutant 21% | Scavenger-Mutant 20% | Hacker-Sprinter 7% | Commander-Mutant 7% | Wizard-Sprinter 5% | Hacker-Mutant Dominant Class ---------------- Mutant | -10/Materials Mutant | -10/Mines Mutant | -10/Exiles Mutant | -9/Mines Scavenger-Mutant | -8/Materials Commander-Mutant | -8/Storage Mutant | -8/Garrison Hacker-Mutant | -7/Factory Hacker-Sprinter | -7/Lower Caves Hacker-Sprinter | -7/Lower Caves Hacker-Sprinter | -7/Data Miner Hacker-Sprinter | -6/Proximity Caves Hacker-Sprinter | -6/Factory Hacker-Sprinter | -6/Lower Caves Hacker-Sprinter | -6/Lower Caves Hacker-Sprinter | -6/Zion Hacker-Sprinter | -5/Proximity Caves Hacker-Sprinter | -5/Factory Hacker-Sprinter | -5/Extension Hacker-Sprinter | -5/Cetus Wizard-Mutant | -5/Archives Wizard-Sprinter | -5/Hub_04(d) Wizard-Sprinter | -4/Factory Wizard-Sprinter | -4/Upper Caves Wizard-Sprinter | -4/Upper Caves Wizard-Sprinter | -4/Zhirov Hacker-Sprinter | -3/Proximity Caves Hacker-Mutant | -3/Research Wizard-Mutant | -2/Research Wizard-Scout | -1/Access Resources | -11 -10 -10 -10 -9 -8 -8 -8 -7 -7 -7 -7 -6 -6 -6 -6 -6 -5 -5 -5 -5 -5 -5 -4 -4 -4 -4 -3 -3 -2 -1 ----------- Run | Yrd Mat Min Exi Min Mat Sto Gar Fac Low Low Dat Pro Fac Low Low Zio Pro Fac Ext Cet Arc Hub Fac Upp Upp Zhi Pro Res Res Acc Matter Collected 7550 | 289 400 133 . 31 1369 1069 366 284 160 . . . 564 7 50 . 75 552 214 40 472 20 520 20 . 116 162 543 84 10 Remotely 127 | . . . . . . . . . . . . . . . . . . 80 . . 47 . . . . . . . . . Salvage Created 9550 | 140 590 154 . . 1907 1517 890 284 219 . . . 659 . 94 . 241 445 210 . 296 120 877 . . 302 106 405 84 10 Parts 470 | 8 30 8 . . 100 81 52 20 5 . . . 47 . 2 . . 16 10 . 18 8 26 . . 2 6 15 12 4 Haulers Intercepted 19 | . 2 . . . 5 5 . 2 . . . . 1 . . . . 1 . . . 1 2 . . . . . . . Recyclers Shooed 9 | . . . . . 1 4 . . . . . . . . . . . . 2 . . . . . . . . 2 . . Parts Field Recycled . | . . . . . . . . . . . . . . . . . . . . . . . . . . . . . . . Retrieved Matter . | . . . . . . . . . . . . . . . . . . . . . . . . . . . . . . . Parts Self-Destructed 9 | . . . . . . . . . 1 . . . . . 2 . . . . . . . . . . 2 4 . . . Prevented 4 | . . . . . . . . . . . . 1 . . 3 . . . . . . . . . . . . . . . Kills | -11 -10 -10 -10 -9 -8 -8 -8 -7 -7 -7 -7 -6 -6 -6 -6 -6 -5 -5 -5 -5 -5 -5 -4 -4 -4 -4 -3 -3 -2 -1 ------- Run | Yrd Mat Min Exi Min Mat Sto Gar Fac Low Low Dat Pro Fac Low Low Zio Pro Fac Ext Cet Arc Hub Fac Upp Upp Zhi Pro Res Res Acc Combat Hostiles Destroyed 97 | . 11 2 . . 25 20 27 . 3 . . . . . . . . . 1 . 3 . . . . . 4 1 . . Melee 3 | . . . . . . . . . 1 . . . . . . . . . 1 . . . . . . . 1 . . . Guns 60 | . 5 . . . 22 18 15 . . . . . . . . . . . . . . . . . . . . . . . Cannons 13 | . 6 2 . . . . . . . . . . . . . . . . . . 3 . . . . . 1 1 . . AOE 20 | . . . . . 3 2 11 . 2 . . . . . . . . . . . . . . . . . 2 . . . Classes Destroyed 19 | 2 4 . . . 6 3 2 . 1 . . . . . 1 . . . . . . . . . . . . . . . Worker 15 | . 4 1 . . 3 1 . . . . . . 1 . . . . 1 . . . . 2 . . . . 1 1 . Builder 12 | . . . . . 1 1 . 3 . . . . 3 . . . . 1 . . . . . . . . . 1 2 . Tunneler 8 | 2 . . . . 2 . . . . . . . 2 . . . . . . . . . . . . . . 1 . 1 Hauler 19 | . 2 . . . 5 5 . 2 . . . . 1 . . . . 1 . . . 1 2 . . . . . . . Recycler 20 | 1 1 1 . . 1 3 . . . . . . 2 . . . . 2 1 . . . 5 . . . . 3 . . Minesweeper 2 | . . . . . . . . . . . . . . . 1 . . . . . . . . . . . 1 . . . Mechanic 4 | . . . . . 1 1 . 1 . . . . 1 . . . . . . . . . . . . . . . . . Operator 11 | . . . . . 1 2 . 1 . . . . . . . . . 1 . . 5 . . . . . . . 1 . Watcher 20 | . 3 . . . 5 1 1 1 . . . . 3 . . . . 2 1 . . 1 1 . . . . 1 . . Swarmer 16 | . . . . . . 3 10 . . . . . . . . . . . . . . . . . . . 3 . . . Grunt 41 | . 11 2 . . 11 7 6 . 2 . . . . . . . . . 1 . . . . . . . 1 . . . Brawler 7 | . . . . . 4 2 . . 1 . . . . . . . . . . . . . . . . . . . . . Duelist 4 | . . . . . 1 . 3 . . . . . . . . . . . . . . . . . . . . . . . Sentry 21 | . . . . . 9 6 3 . . . . . . . . . . . . . 3 . . . . . . . . . Demolisher 1 | . . . . . . 1 . . . . . . . . . . . . . . . . . . . . . . . . Specialist 1 | . . . . . . . 1 . . . . . . . . . . . . . . . . . . . . . . . Hunter 2 | . . . . . . 1 1 . . . . . . . . . . . . . . . . . . . . . . . Programmer 4 | . . . . . . . 3 . . . . . . . . . . . . . . . . . . . . 1 . . Samaritan 2 | . . . . . . . . . 2 . . . . . . . . . . . . . . . . . . . . . Thug 1 | . . . . . . . . 1 . . . . . . . . . . . . . . . . . . . . . . Best Kill Streak 11 | 3 3 2 . . 3 8 11 2 3 . . . 2 . 1 . . 2 2 . 5 1 3 . . . 4 2 3 1 Combat Bots Only 11 | . 3 2 . . 3 3 11 . 3 . . . . . . . . . 1 . 1 . . . . . 4 1 . . Max Kills in Single Turn 5 | 1 1 1 . . 2 3 5 1 2 . . . 1 . 1 . . 1 1 . 1 1 1 . . . 2 1 1 1 Gunslinging 1 | . . . . . 1 . . . . . . . . . . . . . . . . . . . . . . . . . Exploded 5 | . . . . . 1 2 5 . 2 . . . . . . . . . . . . . . . . . 2 . . . Melee 1 | . . . . . . . . . 1 . . . . . . . . . 1 . . . . . . . 1 . . . Uniques/NPCs Destroyed . | . . . . . . . . . . . . . . . . . . . . . . . . . . . . . . . Combat | -11 -10 -10 -10 -9 -8 -8 -8 -7 -7 -7 -7 -6 -6 -6 -6 -6 -5 -5 -5 -5 -5 -5 -4 -4 -4 -4 -3 -3 -2 -1 -------- Run | Yrd Mat Min Exi Min Mat Sto Gar Fac Low Low Dat Pro Fac Low Low Zio Pro Fac Ext Cet Arc Hub Fac Upp Upp Zhi Pro Res Res Acc Hostile Shots Fired 882 | . 38 6 . . 137 93 126 38 6 9 . 21 36 6 3 . 3 17 3 . 21 11 78 . . . 107 120 . 3 Missed 346 | . 8 1 . . 34 23 40 16 1 7 . 10 14 5 3 . 3 8 2 . 6 5 51 . . . 54 53 . 2 Damage Taken 9852 | . 413 69 . . 1315 1161 1185 197 87 10 . 119 418 23 . . . 241 35 78 418 120 497 . . . 1707 1668 . 91 Core 1819 | . 26 . . . 135 78 116 21 53 5 . 30 90 . . . . 30 10 54 111 . 71 . . . 596 302 . 91 Absorbed by Shields 688 | . . . . . 461 217 . . . . . . . . . . . . 10 . . . . . . . . . . . Regen/Repaired (Parts) 508 | . . . . . . 97 . . . . . . 237 . . 95 . . . . . . 79 . . . . . . . Core Remaining (%) 79 | 100 . . . 89 . . 40 . . . . 84 . . . . 89 . . . . 79 . . . . 42 76 100 94 Volleys Fired 527 | 13 47 6 . . 131 115 58 2 1 . . . 18 . . . 10 11 21 . 17 . 20 . 7 . 9 38 . 3 Largest 3 | 2 2 2 . . 2 2 2 2 1 . . . 1 . . . 1 1 1 . 3 . 1 . 1 . 2 3 . 1 Hottest 282 | 70 70 70 . . 100 122 122 123 39 . . . 90 . . . 70 70 70 . 220 . 70 . 70 . 158 282 . 120 Shots Fired 930 | 26 94 13 . . 260 228 108 4 1 . . . 18 . . . 10 11 21 . 39 . 20 . 7 . 11 56 . 3 Gun 662 | 26 28 . . . 256 227 101 2 . . . . . . . . . . . . 5 . . . . . . 17 . . Cannon 251 | . 66 13 . . . . . 2 . . . . 17 . . . 10 11 21 . 34 . 20 . 7 . 9 38 . 3 Launcher 15 | . . . . . 3 1 7 . 1 . . . . . . . . . . . . . . . . . 2 1 . . Special 2 | . . . . . 1 . . . . . . . 1 . . . . . . . . . . . . . . . . . Kinetic 627 | 13 80 13 . . 218 155 . . . . . . . . . . 10 11 21 . 34 . 20 . 7 . 7 38 . . Thermal 276 | 13 14 . . . 39 66 101 . . . . . 18 . . . . . . . 5 . . . . . . 17 . 3 Explosive 15 | . . . . . 3 1 7 . 1 . . . . . . . . . . . . . . . . . 2 1 . . Electromagnetic 12 | . . . . . . 6 . 4 . . . . . . . . . . . . . . . . . . 2 . . . Robot Hit Streak 12 | 5 9 7 . . 12 10 11 5 . . . . 6 . . . . . 2 . 7 . . . . . 4 11 . 5 Robot Miss Streak 7 | 7 3 1 . . 4 6 2 . . . . . . . . . . 1 6 . 2 . 1 . . . 3 3 . . Penetration Max . | . . . . . . . . . . . . . . . . . . . . . . . . . . . . . . . Secondary Targets 9 | . . . . . 4 . 5 . . . . . . . . . . . . . . . . . . . . . . . Max Gunslinging Chain 1 | . . . . . 1 . 1 . . . . . . . . . . . . . . . . . . . . . . . Shots Hit Robots 632 | 12 57 9 . . 163 122 58 26 4 . . . 18 . 9 1 6 19 11 . 38 7 18 . . 8 8 30 5 3 Core Hits 303 | 4 29 5 . . 76 53 48 10 6 . . . 11 . 2 . 2 3 5 . 12 2 7 . . 3 6 13 4 2 Critical Kills 1 | . . . . . . . . 1 . . . . . . . . . . . . . . . . . . . . . . Critical Parts Destroyed 2 | 1 . . . . . 1 . . . . . . . . . . . . . . . . . . . . . . . . Critical Strikes 23 | 2 1 . . . 1 5 3 1 2 . . . 2 . 1 . . 1 . . 2 . . . . . 1 1 . . Burn 7 | 1 . . . . . 3 3 . . . . . . . . . . . . . . . . . . . . . . . Destroy 4 | 1 . . . . 1 2 . . . . . . . . . . . . . . . . . . . . . . . . Blast 5 | . 1 . . . . . . . . . . . . . . . . . . . 2 . . . . . 1 1 . . Smash 1 | . . . . . . . . 1 . . . . . . . . . . . . . . . . . . . . . . Sever 2 | . . . . . . . . . . . . . . . 1 . . 1 . . . . . . . . . . . . Impale 4 | . . . . . . . . . 2 . . . 2 . . . . . . . . . . . . . . . . . Melee Attacks 338 | . . . . . 1 . . 45 6 . . 2 62 1 11 2 18 53 16 6 15 10 54 . 3 8 7 . 11 7 Impact 21 | . . . . . 1 . . 20 . . . . . . . . . . . . . . . . . . . . . . Slashing 197 | . . . . . . . . . . . . . 2 1 11 1 18 48 16 6 12 10 54 . 3 8 7 . . . Piercing 106 | . . . . . . . . 20 6 . . 2 60 . . . . . . . . . . . . . . . 11 7 Sneak Attacks 66 | . . . . . . . . 15 2 . . . 10 . 1 1 . 10 3 . 8 1 10 . . . . . 4 1 Combat Hostiles 8 | . . . . . . . . 5 . . . . . . . . . 2 1 . . . . . . . . . . . Follow-up Attacks 1 | . . . . . . . . . . . . . . . . . . . . . . . . . . . . . 1 . Damage Inflicted 19877 | 162 955 160 . . 3016 2432 1957 909 453 . . . 1146 . 409 . 337 829 496 . 1899 315 1254 . . 644 667 1215 413 209 Guns 7187 | 162 254 . . . 2742 2295 1225 43 . . . . . . . . . . . . 96 . . . . . . 370 . . Cannons 3039 | . 678 152 . . . . . 43 . . . . . . . . . . 77 . 1160 . . . . . 150 738 . 41 Explosions 1730 | . . . . . 207 106 732 . 206 . . . . . . . . 92 . . . . . . . . 319 68 . . Melee 7741 | . . . . . . . . 823 247 . . . 1134 . 409 . 337 737 419 . 643 315 1254 . . 644 198 . 413 168 Ramming 168 | . 23 8 . . 67 31 . . . . . . . . . . . . . . . . . . . . . 39 . . Kinetic 6704 | 74 794 152 . . 2182 1419 . . . . . . . . . . . . 77 . 1160 . . . . . 108 738 . . Thermal 3427 | 88 138 . . . 560 805 1225 . . . . . 12 . . . . 92 . . 96 . . . . . . 370 . 41 Explosive 1613 | . . . . . 207 81 732 . 206 . . . . . . . . . . . . . . . . . 319 68 . . Electromagnetic 224 | . . . . . . 96 . 86 . . . . . . . . . . . . . . . . . . 42 . . . Impact 172 | . . . . . . . . 172 . . . . . . . . . . . . . . . . . . . . . . Slashing 5026 | . . . . . . . . . . . . . 70 . 409 . 337 737 419 . 643 315 1254 . . 644 198 . . . Piercing 2543 | . . . . . . . . 651 247 . . . 1064 . . . . . . . . . . . . . . . 413 168 Highest Corruption 5 | . 1 1 1 1 1 1 5 2 2 2 2 3 2 . . . . 1 . . . . . . . . 4 2 . . Average Corruption 1 | . 1 1 1 1 1 1 2 2 2 2 2 2 1 . . . . 1 . . . . . . . . 3 1 . . Corruption Purged 3 | . . . . . . . . . . . . . 2 . . . . 1 . . . . . . . . . . . . Corruption Blocked . | . . . . . . . . . . . . . . . . . . . . . . . . . . . . . . . Effects 115 | . 12 17 8 3 20 26 16 6 1 . . 2 . . . . . . . . . . . . . . 2 2 . . Message Errors 26 | . 3 3 1 2 5 5 5 1 . . . 1 . . . . . . . . . . . . . . . . . . Matter Fused 26 | . 1 4 2 . 6 6 2 1 1 . . . . . . . . . . . . . . . . . 2 1 . . Heat Flow Errors 17 | . 3 2 1 . 1 4 4 1 . . . 1 . . . . . . . . . . . . . . . . . . Energy Discharges 18 | . . 4 2 . 2 5 3 1 . . . . . . . . . . . . . . . . . . . 1 . . Parts Rejected 1 | . . . . . 1 . . . . . . . . . . . . . . . . . . . . . . . . . Parts Fused 1 | . . . . . . . 1 . . . . . . . . . . . . . . . . . . . . . . . Data Loss (minor) 14 | . 2 2 1 . 3 4 1 1 . . . . . . . . . . . . . . . . . . . . . . Data Loss (major) 6 | . 1 1 . 1 . 2 . 1 . . . . . . . . . . . . . . . . . . . . . . Misfires 4 | . 1 1 . . 2 . . . . . . . . . . . . . . . . . . . . . . . . . Alerts 1 | . . . 1 . . . . . . . . . . . . . . . . . . . . . . . . . . . Weapon Failures 1 | . 1 . . . . . . . . . . . . . . . . . . . . . . . . . . . . . Overload Shots . | . . . . . . . . . . . . . . . . . . . . . . . . . . . . . . . Overflow Damage 1515 | . 5 . . . 5 . 20 139 30 . . . 96 . 63 . 120 290 34 . 141 3 277 . . 156 23 73 40 . Projectiles 79 | . 5 . . . . . . . . . . . . . . . . . . . 20 . . . . . 6 48 . . Explosions 147 | . . . . . . . 20 . . . . . . . . . . 102 . . . . . . . . . 25 . . Melee 1289 | . . . . . 5 . . 139 30 . . . 96 . 63 . 120 188 34 . 121 3 277 . . 156 17 . 40 . Knockbacks 24 | . 11 1 . . 1 . . . . . . . . . . . . . . . 3 . . . . . . 8 . . Impact 2 | . . . . . 1 . . . . . . . . . . . . . . . . . . . . . . 1 . . Kinetic 21 | . 10 1 . . . . . . . . . . . . . . . . . . 3 . . . . . . 7 . . Secondary 1 | . 1 . . . . . . . . . . . . . . . . . . . . . . . . . . . . . Self-Inflicted Damage 250 | . . . . . 37 44 39 . . . . . . . . . . 60 . . . . . . . . . 70 . . Shots 5 | . . . . . 1 1 1 . . . . . . . . . . 1 . . . . . . . . . 1 . . Rammed 14 | . 2 1 . . 5 3 . . . . . . . . . . . . . . . . . . . . . 3 . . Targets Rammed 18 | . 4 1 . . 6 4 . . . . . . . . . . . . . . . . . . . . . 3 . . Kicked . | . . . . . . . . . . . . . . . . . . . . . . . . . . . . . . . Crushed 4 | . 2 . . . 1 1 . . . . . . . . . . . . . . . . . . . . . . . . Highest Temperature 425 | 72 258 267 151 . 258 330 229 425 4 . . 306 266 4 . . 64 54 208 1 398 9 100 . 53 . 108 285 . 44 Average Temperature 68 | 31 69 77 82 . 36 109 77 131 4 . . 188 72 4 . . 24 11 35 1 145 6 30 . 21 . 42 107 . 24 Received Heat Transfer 1969 | . 225 39 . . 473 282 243 57 45 . . 12 78 9 . . . 39 4 . 99 45 79 . . . 117 123 . . Effects 8 | . 1 . . . . 4 . . . . . 1 . . . . . . 1 . 1 . . . . . . . . . Shutdowns 1 | . . . . . . . . . . . . . . . . . . . . . 1 . . . . . . . . . Energy Bleed 1 | . 1 . . . . . . . . . . . . . . . . . . . . . . . . . . . . . Interference 3 | . . . . . . 2 . . . . . . . . . . . . 1 . . . . . . . . . . . Matter Decay 3 | . . . . . . 2 . . . . . 1 . . . . . . . . . . . . . . . . . . Siege Activations . | . . . . . . . . . . . . . . . . . . . . . . . . . . . . . . . Robots Corrupted 2 | . . . . . 1 1 . . . . . . . . . . . . . . . . . . . . . . . . Combat Hostiles . | . . . . . . . . . . . . . . . . . . . . . . . . . . . . . . . Parts Fried 4 | . . . . . 2 2 . . . . . . . . . . . . . . . . . . . . . . . . Impact Corruptions 1 | . . . . . 1 . . . . . . . . . . . . . . . . . . . . . . . . . Robots Melted 1 | . . . . . . . 1 . . . . . . . . . . . . . . . . . . . . . . . Combat Hostiles 1 | . . . . . . . 1 . . . . . . . . . . . . . . . . . . . . . . . Parts Melted 12 | . 1 . . . 4 1 6 . . . . . . . . . . . . . . . . . . . . . . . Heat Transferred 6461 | 333 407 . . . 1036 1715 2254 . . . . . 37 . . . . 50 . . 111 . . . . . . 481 . 37 Parts Sabotaged . | . . . . . . . . . . . . . . . . . . . . . . . . . . . . . . . Parts Stolen . | . . . . . . . . . . . . . . . . . . . . . . . . . . . . . . . Parts Stripped . | . . . . . . . . . . . . . . . . . . . . . . . . . . . . . . . Power Chain Reactions 1 | . . . . . . 1 . . . . . . . . . . . . . . . . . . . . . . . . Alert | -11 -10 -10 -10 -9 -8 -8 -8 -7 -7 -7 -7 -6 -6 -6 -6 -6 -5 -5 -5 -5 -5 -5 -4 -4 -4 -4 -3 -3 -2 -1 ------- Run | Yrd Mat Min Exi Min Mat Sto Gar Fac Low Low Dat Pro Fac Low Low Zio Pro Fac Ext Cet Arc Hub Fac Upp Upp Zhi Pro Res Res Acc Peak Influence 1078 | 15 193 94 . . 212 496 1078 689 . . . . 325 . . . . 374 444 296 223 240 360 . . . . 206 158 133 Initial 565 | . 9 19 . . . 89 308 565 . . . . . . . . . 18 69 124 118 7 63 . . . . . 54 94 Average 189 | 8 50 17 . . 126 277 824 468 . . . . 157 . . . . 171 224 217 151 116 188 . . . . 71 86 81 Maximum Alert Level 3 | . . . . . 1 2 3 2 . . . . 1 . . . . 1 2 1 1 1 1 . . . . 1 . . Low Security (%) 68 | 100 100 100 . 100 86 41 . . . . . . 60 . . . . 55 46 37 56 92 70 . . . . 98 100 100 Level 1 17 | . . . . . 13 20 7 46 . . . . 39 . . . . 44 42 62 43 7 29 . . . . 1 . . Level 2 9 | . . . . . . 38 11 53 . . . . . . . . . . 11 . . . . . . . . . . . Level 3 4 | . . . . . . . 80 . . . . . . . . . . . . . . . . . . . . . . . Level 4 . | . . . . . . . . . . . . . . . . . . . . . . . . . . . . . . . Level 5 . | . . . . . . . . . . . . . . . . . . . . . . . . . . . . . . . High Security . | . . . . . . . . . . . . . . . . . . . . . . . . . . . . . . . Max Security . | . . . . . . . . . . . . . . . . . . . . . . . . . . . . . . . Squads Dispatched 47 | . 1 1 . . 3 6 . 2 . . . . 9 . . . . 8 . . . 1 11 . . . . 3 . 2 Investigation 23 | . 1 1 . . . 1 . 1 . . . . 8 . . . . 5 . . . . 6 . . . . . . . Extermination 5 | . . . . . . . . . . . . . 1 . . . . 1 . . . . 1 . . . . 2 . . Reinforcement 16 | . . . . . 1 4 . 1 . . . . . . . . . 2 . . . 1 4 . . . . 1 . 2 Assault 1 | . . . . . . 1 . . . . . . . . . . . . . . . . . . . . . . . . Garrison 2 | . . . . . 2 . . . . . . . . . . . . . . . . . . . . . . . . . Intercept . | . . . . . . . . . . . . . . . . . . . . . . . . . . . . . . . Searches Triggered . | . . . . . . . . . . . . . . . . . . . . . . . . . . . . . . . Construction Impeded 2 | . . . . . . 2 . . . . . . . . . . . . . . . . . . . . . . . . Haulers Reinforced 1 | . . . . . . . . 1 . . . . . . . . . . . . . . . . . . . . . . Active Scanning Responses . | . . . . . . . . . . . . . . . . . . . . . . . . . . . . . . . Cargo Convoy Interrupts 1 | . . . . . . . . . . . . . . . . . . 1 . . . . . . . . . . . . Stealth | -11 -10 -10 -10 -9 -8 -8 -8 -7 -7 -7 -7 -6 -6 -6 -6 -6 -5 -5 -5 -5 -5 -5 -4 -4 -4 -4 -3 -3 -2 -1 --------- Run | Yrd Mat Min Exi Min Mat Sto Gar Fac Low Low Dat Pro Fac Low Low Zio Pro Fac Ext Cet Arc Hub Fac Upp Upp Zhi Pro Res Res Acc Distress Signals 28 | . . . . . 1 7 3 . . . . . . . . . . 1 . 2 . 1 9 . . . 3 1 . . Communications Jammed 97 | . . . . . . . . . . . . . . . . . . . 7 . . . . . . . . 90 . . Distress Signals 60 | . . . . . . . . . . . . . . . . . . . 7 . . . . . . . . 53 . . Times Spotted 444 | . 17 2 . . 41 43 23 10 5 1 . 2 42 10 3 . 5 30 15 5 15 14 64 4 . . 53 34 2 4 Peak Tracking Total 15 | . 3 2 . . 4 6 10 2 4 1 . 2 10 13 3 . 4 5 6 4 1 7 12 4 . . 15 11 1 3 Tactical Retreats 70 | . . . . . 1 1 1 . 2 . . . 16 1 2 . 1 7 3 . . 2 17 . . . 6 8 . 2 Traps | -11 -10 -10 -10 -9 -8 -8 -8 -7 -7 -7 -7 -6 -6 -6 -6 -6 -5 -5 -5 -5 -5 -5 -4 -4 -4 -4 -3 -3 -2 -1 ------- Run | Yrd Mat Min Exi Min Mat Sto Gar Fac Low Low Dat Pro Fac Low Low Zio Pro Fac Ext Cet Arc Hub Fac Upp Upp Zhi Pro Res Res Acc Traps Triggered 9 | . 1 . . . . 1 1 1 . . . . 3 . . . . . . . . . 1 . . . . 1 . . Indirectly . | . . . . . . . . . . . . . . . . . . . . . . . . . . . . . . . Trap Hack Attempts 7 | . . . . . 6 . . . . . . . . . . . . 1 . . . . . . . . . . . . Triggered . | . . . . . . . . . . . . . . . . . . . . . . . . . . . . . . . Disarmed 6 | . . . . . 1 . . 4 . . . . . . . . . 1 . . . . . . . . . . . . Reprogrammed 1 | . . . . . . . . . . . . . 1 . . . . . . . . . . . . . . . . . Reused 4 | . . . . . . . . . . . . . 1 . . . . 3 . . . . . . . . . . . . Traps Extracted . | . . . . . . . . . . . . . . . . . . . . . . . . . . . . . . . Installed 5 | . . . . . . . . . . . . . . . . . . 5 . . . . . . . . . . . . Triggered 6 | . . . . . . . . . . . . 1 1 . 1 . . 3 . . . . . . . . . . . . Most Traps Carried 6 | . . . . . . . . . . . . . . . 6 6 6 6 . . . . . . . . . . . . Machines | -11 -10 -10 -10 -9 -8 -8 -8 -7 -7 -7 -7 -6 -6 -6 -6 -6 -5 -5 -5 -5 -5 -5 -4 -4 -4 -4 -3 -3 -2 -1 ---------- Run | Yrd Mat Min Exi Min Mat Sto Gar Fac Low Low Dat Pro Fac Low Low Zio Pro Fac Ext Cet Arc Hub Fac Upp Upp Zhi Pro Res Res Acc Machines Disabled 22 | . 1 . . . . 5 4 2 . . . . . 1 . . . 4 . 3 1 . 1 . . . . . . . Max in Single Turn 4 | . 1 . . . . 1 1 . . . . . . 1 . . . 4 . 1 1 . 1 . . . . . . . Garrison Access 8 | . . . . . 1 . . 2 . . . . 1 . . . . 1 . . . 1 2 . . . . . . . Machines Repaired . | . . . . . . . . . . . . . . . . . . . . . . . . . . . . . . . Machines Dismantled 1 | . . . . . . 1 . . . . . . . . . . . . . . . . . . . . . . . . Machines Sabotaged . | . . . . . . . . . . . . . . . . . . . . . . . . . . . . . . . Overloaded Fab Kills . | . . . . . . . . . . . . . . . . . . . . . . . . . . . . . . . Hacking | -11 -10 -10 -10 -9 -8 -8 -8 -7 -7 -7 -7 -6 -6 -6 -6 -6 -5 -5 -5 -5 -5 -5 -4 -4 -4 -4 -3 -3 -2 -1 --------- Run | Yrd Mat Min Exi Min Mat Sto Gar Fac Low Low Dat Pro Fac Low Low Zio Pro Fac Ext Cet Arc Hub Fac Upp Upp Zhi Pro Res Res Acc Machines Accessed 161 | . 10 1 2 . 10 10 1 15 . . 4 . 29 . 1 . . 21 3 2 . 7 27 . . 5 . 5 3 5 Terminals 97 | . 8 . . . 8 8 1 9 . . . . 14 . . . . 13 3 2 . 6 15 . . . . 4 1 5 Fabricators 14 | . . . . . . . . 2 . . . . 4 . . . . 4 . . . . 4 . . . . . . . Repair Stations 10 | . . . . . . 1 . . . . . . 6 . . . . 1 . . . . 2 . . . . . . . Recycling Units 11 | . 2 . . . . . . 1 . . . . 3 . . . . 1 . . . . 2 . . . . . 2 . Scanalyzers 7 | . . . . . 1 . . 1 . . . . 1 . . . . 1 . . . . 2 . . . . 1 . . Garrison Access 9 | . . . . . 1 1 . 2 . . . . 1 . . . . 1 . . . 1 2 . . . . . . . Total Hacks 628 | . 24 1 24 . 36 26 2 74 . . 26 . 100 . 1 . . 86 11 4 . 32 107 . . 18 . 16 16 24 Successful 459 | . 10 1 24 . 26 18 1 42 . . 26 . 63 . 1 . . 61 7 3 . 25 88 . . 18 . 10 16 19 Failed 167 | . 14 . . . 10 8 1 31 . . . . 37 . . . . 24 4 1 . 7 19 . . . . 6 . 5 Catastrophic 17 | . 1 . . . 1 2 1 1 . . . . 6 . . . . 2 . . . . 1 . . . . 2 . . Database Lockouts 2 | . . . . . . . . 1 . . . . . . . . . 1 . . . . . . . . . . . . Manual 283 | . 15 . 1 . 20 8 . 38 . . . . 40 . . . . 45 7 1 . 23 59 . . . . 11 9 6 Terminals 408 | . 17 . . . 28 23 2 50 . . . . 52 . . . . 68 11 4 . 31 71 . . . . 15 12 24 Fabricators 48 | . . . . . . . . 10 . . . . 11 . . . . 10 . . . . 17 . . . . . . . Repair Stations 25 | . . . . . . 2 . . . . . . 20 . . . . 1 . . . . 2 . . . . . . . Recycling Units 35 | . 7 . . . . . . 3 . . . . 12 . . . . 2 . . . . 7 . . . . . 4 . Scanalyzers 30 | . . . . . 7 . . 6 . . . . 4 . . . . 4 . . . . 8 . . . . 1 . . Garrison Access 12 | . . . . . 1 1 . 5 . . . . 1 . . . . 1 . . . 1 2 . . . . . . . Terminal Hacks 255 | . 3 1 24 . 9 11 1 21 . . 26 . 21 . 1 . . 31 5 3 . 13 33 . . 18 . 5 12 17 Record 43 | . . . 23 . . . . . . . 11 . . . . . . . . 2 . . 1 . . 6 . . . . Part Schematic 24 | . . . . . 1 . . 4 . . 8 . 1 . . . . 3 . . . 1 2 . . 4 . . . . Robot Schematic 4 | . . . . . . . . . . . 4 . . . . . . . . . . . . . . . . . . . Robot Analysis 16 | . . . . . . . . 1 . . . . 1 . . . . 2 1 . . . 1 . . 4 . . 5 1 Prototype ID Bank 25 | . 2 . . . 3 1 . 1 . . 3 . 3 . . . . 2 1 . . 1 1 . . 4 . . . 3 Open Door 8 | . . 1 . . . 4 . . . . . . . . 1 . . . . 1 . . . . . . . . . 1 Level Access Points 4 | . . . . . . . . . . . . . 1 . . . . . . . . 1 . . . . . . 1 1 Branch Access Points 4 | . . . . . . . . . . . . . 1 . . . . 1 . . . 1 1 . . . . . . . Emergency Access Points 11 | . . . . . 1 1 . . . . . . 1 . . . . 1 . . . 1 4 . . . . . . 2 Machine Index 3 | . . . . . . . . . . . . . 1 . . . . 1 . . . 1 . . . . . . . . Terminal Index 4 | . . . . . . 1 . . . . . . 1 . . . . . . . . . 1 . . . . . . 1 Fabricator Index 1 | . . . . . . . . . . . . . . . . . . . . . . . 1 . . . . . . . Repair Station Index 1 | . . . . . . . . . . . . . . . . . . . . . . . 1 . . . . . . . Recycling Unit Index 1 | . . . . . . . . . . . . . . . . . . . . . . . 1 . . . . . . . Scanalyzer Index 2 | . . . . . . . . . . . . . . . . . . . . . . . 1 . . . . . . 1 Garrison Index 2 | . . . . . . . . . . . . . . . . . . . . . . . 1 . . . . . . 1 Alert Level 8 | . . . . . 1 . . 3 . . . . 1 . . . . 2 . . . . . . . . . . 1 . Unreport Threat 12 | . . . . . 1 1 . 2 . . . . 1 . . . . 1 2 . . 1 2 . . . . . . 1 Locate Traps 19 | . . . . . . 1 . 3 . . . . 3 . . . . 4 1 . . . 4 . . . . 1 1 1 Disarm Traps 2 | . . . . . . . . 2 . . . . . . . . . . . . . . . . . . . . . . Reprogram Traps 1 | . . . . . . . . . . . . . 1 . . . . . . . . . . . . . . . . . Dispatch Records 2 | . . . . . . . . . . . . . . . . . . 1 . . . . 1 . . . . . . . Patrol Status 5 | . . . . . . . . 1 . . . . . . . . . . . . . . 1 . . . . 1 1 1 Investigation Status 1 | . . . . . . . . . . . . . . . . . . 1 . . . . . . . . . . . . Recall Investigation 2 | . . . . . . . . . . . . . . . . . . 1 . . . . 1 . . . . . . . Recall Extermination 2 | . . . . . . . . . . . . . 1 . . . . . . . . . 1 . . . . . . . Recall Reinforcements 3 | . . . . . . . . . . . . . . . . . . 2 . . . . 1 . . . . . . . Recall Assault 1 | . . . . . . . . . . . . . . . . . . 1 . . . . . . . . . . . . Hauler Manifests 9 | . . . . . . 1 . 1 . . . . 2 . . . . 2 . . . 1 1 . . . . . 1 . Registered Components 3 | . . . . . . . . . . . . . . . . . . . . . . . 1 . . . . 1 1 . Zone Layout 30 | . 1 . . . 2 1 . 3 . . . . 2 . . . . 6 . . . 5 4 . . . . 2 1 3 Garrison Registry 1 | . . . . . . . 1 . . . . . . . . . . . . . . . . . . . . . . . Derelict Proto ID Bank 1 | . . . 1 . . . . . . . . . . . . . . . . . . . . . . . . . . . Fabricator Hacks 28 | . . . . . . . . 4 . . . . 6 . . . . 8 . . . . 10 . . . . . . . Network Status 6 | . . . . . . . . 1 . . . . 1 . . . . 2 . . . . 2 . . . . . . . Load Schematic 14 | . . . . . . . . 2 . . . . 3 . . . . 4 . . . . 5 . . . . . . . Build 8 | . . . . . . . . 1 . . . . 2 . . . . 2 . . . . 3 . . . . . . . Repair Station Hacks 16 | . . . . . . 2 . . . . . . 13 . . . . 1 . . . . . . . . . . . . Scan Component 9 | . . . . . . 1 . . . . . . 7 . . . . 1 . . . . . . . . . . . . Repair 7 | . . . . . . 1 . . . . . . 6 . . . . . . . . . . . . . . . . . Recycling Unit Hacks 8 | . . . . . . . . . . . . . 4 . . . . . . . . . 2 . . . . . 2 . Retrieve Components 8 | . . . . . . . . . . . . . 4 . . . . . . . . . 2 . . . . . 2 . Scanalyzer 21 | . . . . . 7 . . 3 . . . . 2 . . . . 2 . . . . 6 . . . . 1 . . Insert Component 9 | . . . . . 3 . . 1 . . . . 1 . . . . 1 . . . . 2 . . . . 1 . . Analyze 12 | . . . . . 4 . . 2 . . . . 1 . . . . 1 . . . . 4 . . . . . . . Garrison Access Hacks 9 | . . . . . 1 1 . 2 . . . . 1 . . . . 1 . . . 1 2 . . . . . . . Unlock Access 1 | . . . . . . 1 . . . . . . . . . . . . . . . . . . . . . . . . Seal Access 8 | . . . . . 1 . . 2 . . . . 1 . . . . 1 . . . 1 2 . . . . . . . Unauthorized Hacks 122 | . 7 . . . 9 4 . 12 . . . . 16 . . . . 18 2 . . 11 35 . . . . 4 2 2 Terminals 91 | . 6 . . . 9 4 . 8 . . . . 7 . . . . 16 2 . . 11 22 . . . . 4 . 2 Track 2 | . . . . . . . . . . . . . . . . . . . . . . 1 1 . . . . . . . Assimilate 8 | . . . . . . . . 2 . . . . . . . . . 2 1 . . . 2 . . . . . . 1 Botnet 28 | . 1 . . . 2 1 . 1 . . . . 2 . . . . 5 1 . . 3 9 . . . . 2 . 1 Disrupt 2 | . . . . . . . . . . . . . . . . . . 1 . . . 1 . . . . . . . . Operators 4 | . . . . . 2 . . . . . . . . . . . . 1 . . . 1 . . . . . . . . Skim 47 | . 5 . . . 5 3 . 5 . . . . 5 . . . . 7 . . . 5 10 . . . . 2 . . Fabricators 13 | . . . . . . . . 3 . . . . 2 . . . . 2 . . . . 6 . . . . . . . Report 1 | . . . . . . . . . . . . . . . . . . . . . . . 1 . . . . . . . Prioritize 7 | . . . . . . . . 2 . . . . 1 . . . . 1 . . . . 3 . . . . . . . Haulers 1 | . . . . . . . . . . . . . . . . . . . . . . . 1 . . . . . . . Recompile 4 | . . . . . . . . 1 . . . . 1 . . . . 1 . . . . 1 . . . . . . . Repair Stations 4 | . . . . . . . . . . . . . 2 . . . . . . . . . 2 . . . . . . . Patch 4 | . . . . . . . . . . . . . 2 . . . . . . . . . 2 . . . . . . . Recycling Units 14 | . 1 . . . . . . 1 . . . . 5 . . . . . . . . . 5 . . . . . 2 . Monitor 1 | . . . . . . . . . . . . . 1 . . . . . . . . . . . . . . . . . Reject 3 | . . . . . . . . . . . . . 1 . . . . . . . . . 2 . . . . . . . Recyclers 2 | . . . . . . . . . . . . . 1 . . . . . . . . . 1 . . . . . . . Mask 7 | . . . . . . . . 1 . . . . 2 . . . . . . . . . 2 . . . . . 2 . Tunnel 1 | . 1 . . . . . . . . . . . . . . . . . . . . . . . . . . . . . Scanalyzers . | . . . . . . . . . . . . . . . . . . . . . . . . . . . . . . . Garrison Access . | . . . . . . . . . . . . . . . . . . . . . . . . . . . . . . . Data Cores Recovered 1 | . . . . . . . . . . . . . . . . . . . . . . . . . . . . . 1 . Used 1 | . . . . . . . . . . . . . . . . . . . . . . . . . . . . . 1 . Hacking Detections 120 | . 10 . . . 8 7 1 12 . . . . 24 . . . . 17 3 2 . 5 19 . . . . 5 3 4 Full Trace Events 16 | . 1 . . . 1 1 1 . . . . . 5 . . . . 4 . . . . 3 . . . . . . . Feedback Events 2 | . 1 . . . . . . . . . . . . . . . . 1 . . . . . . . . . . . . Corruption 2 | . 1 . . . . . . . . . . . . . . . . 1 . . . . . . . . . . . . Feedback Blocked 2 | . . . . . . . . . . . . . . . . . . . . . . . 2 . . . . . . . Robot Schematics Acquired 8 | . . . . . . . . . . . 4 . . . . 4 . . . . . . . . . . . . . . Robots Built . | . . . . . . . . . . . . . . . . . . . . . . . . . . . . . . . Authchips . | . . . . . . . . . . . . . . . . . . . . . . . . . . . . . . . Time . | . . . . . . . . . . . . . . . . . . . . . . . . . . . . . . . Total Robot Build Rating . | . . . . . . . . . . . . . . . . . . . . . . . . . . . . . . . Part Schematics Acquired 46 | . . . . . 4 . . 5 . . 8 . 2 . . 14 . 4 . . . 1 4 . . 4 . . . . Parts Built 10 | . . . . . . . . 1 . . . . 3 . . . . 2 . . . . 4 . . . . . . . Authchips 4 | . . . . . . . . 1 . . . . 1 . . . . 1 . . . . 1 . . . . . . . Time 318 | . . . . . . . . 24 . . . . 58 . . . . 79 . . . . 157 . . . . . . . Total Part Build Rating 39 | . . . . . . . . 2 . . . . 6 . . . . 12 . . . . 19 . . . . . . . Parts Repaired 7 | . . . . . . 1 . . . . . . 6 . . . . . . . . . . . . . . . . . Time 335 | . . . . . . 60 . . . . . . 275 . . . . . . . . . . . . . . . . . Parts Recycled . | . . . . . . . . . . . . . . . . . . . . . . . . . . . . . . . Recycled Matter . | . . . . . . . . . . . . . . . . . . . . . . . . . . . . . . . Retrieved Matter . | . . . . . . . . . . . . . . . . . . . . . . . . . . . . . . . Retrieved Components 16 | . . . . . . . . . . . . . 8 . . . . . . . . . 4 . . . . . 4 . Parts Scanalyzed 8 | . . . . . 3 . . 1 . . . . 1 . . . . 1 . . . . 2 . . . . . . . Part Schematics Acquired 8 | . . . . . 3 . . 1 . . . . 1 . . . . 1 . . . . 2 . . . . . . . Parts Damaged . | . . . . . . . . . . . . . . . . . . . . . . . . . . . . . . . Bothacking | -11 -10 -10 -10 -9 -8 -8 -8 -7 -7 -7 -7 -6 -6 -6 -6 -6 -5 -5 -5 -5 -5 -5 -4 -4 -4 -4 -3 -3 -2 -1 ------------ Run | Yrd Mat Min Exi Min Mat Sto Gar Fac Low Low Dat Pro Fac Low Low Zio Pro Fac Ext Cet Arc Hub Fac Upp Upp Zhi Pro Res Res Acc Used RIF Installer . | . . . . . . . . . . . . . . . . . . . . . . . . . . . . . . . Robots Hacked 7 | . . . . . . . . . . . . . . . . 1 . 3 . . 3 . . . . . . . . . Non-combat 6 | . . . . . . . . . . . . . . . . . . 3 . . 3 . . . . . . . . . Combat 1 | . . . . . . . . . . . . . . . . 1 . . . . . . . . . . . . . . Robot Hacks Applied 7 | . . . . . . . . . . . . . . . . 1 . 3 . . 3 . . . . . . . . . parse_system 1 | . . . . . . . . . . . . . . . . 1 . . . . . . . . . . . . . . find_chute 2 | . . . . . . . . . . . . . . . . . . 2 . . . . . . . . . . . . check_alert 4 | . . . . . . . . . . . . . . . . . . 1 . . 3 . . . . . . . . . Relay Couplers Released 1 | . . . . . 1 . . . . . . . . . . . . . . . . . . . . . . . . . Machine Destruction 1 | . . . . . 1 . . . . . . . . . . . . . . . . . . . . . . . . . Fabnet Peak Effective % . | . . . . . . . . . . . . . . . . . . . . . . . . . . . . . . . Robots Rewired 15 | . . . . . . . . 3 . . . . . . . . . 1 11 . . . . . . . . . . . Allies Hacked 1 | . . . . . . . . . . . . . . . . . . . . . . . . . . . . . . 1 Hacks Repelled . | . . . . . . . . . . . . . . . . . . . . . . . . . . . . . . . Allies | -11 -10 -10 -10 -9 -8 -8 -8 -7 -7 -7 -7 -6 -6 -6 -6 -6 -5 -5 -5 -5 -5 -5 -4 -4 -4 -4 -3 -3 -2 -1 -------- Run | Yrd Mat Min Exi Min Mat Sto Gar Fac Low Low Dat Pro Fac Low Low Zio Pro Fac Ext Cet Arc Hub Fac Upp Upp Zhi Pro Res Res Acc Total Allies 38 | . . . . . . 10 . 8 . . . . . . . . . 2 15 . . . 2 . . . . . . 1 Largest Group 14 | . . . . . . 10 . 4 . . . . . . . . . 1 14 14 3 . 2 . . . . . . 1 Highest-Rated Group 561 | . . . . . . 173 . 128 . . . . . . . . . 26 561 561 212 . 52 . . . . . . 45 Highest-Rated Ally 159 | . . . . . . 29 . 34 . . . . . . . . . 26 159 159 159 . 26 . . . . . . 45 Total Orders 3 | . . . . . . . . 2 . . . . . . . . . . . 1 . . . . . . . . . . STAY 1 | . . . . . . . . 1 . . . . . . . . . . . . . . . . . . . . . . ROAM 1 | . . . . . . . . . . . . . . . . . . . . 1 . . . . . . . . . . FOLLOW 1 | . . . . . . . . 1 . . . . . . . . . . . . . . . . . . . . . . Ally Attacks 296 | . . . . . . 104 . 31 . . . . . . . . . 4 61 80 16 . . . . . . . . . Total Damage 5637 | . . . . . . 1322 . 1091 . . . . . . . . . 15 1512 1429 268 . . . . . . . . . Kills 45 | . . . . . . 11 . 9 . . . . . . . . . . 12 12 1 . . . . . . . . . Allies Corrupted . | . . . . . . . . . . . . . . . . . . . . . . . . . . . . . . . Allies Melted . | . . . . . . . . . . . . . . . . . . . . . . . . . . . . . . . Intel | -11 -10 -10 -10 -9 -8 -8 -8 -7 -7 -7 -7 -6 -6 -6 -6 -6 -5 -5 -5 -5 -5 -5 -4 -4 -4 -4 -3 -3 -2 -1 ------- Run | Yrd Mat Min Exi Min Mat Sto Gar Fac Low Low Dat Pro Fac Low Low Zio Pro Fac Ext Cet Arc Hub Fac Upp Upp Zhi Pro Res Res Acc Robot Analysis Total 16 | . . . . . . . . 1 . . . . 1 . . . . 2 1 . . . 1 . . 4 . . 5 1 Derelict Logs Recovered 12 | . . 2 . . . . . . . 2 . 2 . . . 1 3 . . . . . . . 2 . . . . . Drone Launches . | . . . . . . . . . . . . . . . . . . . . . . . . . . . . . . . Drone Recoveries . | . . . . . . . . . . . . . . . . . . . . . . . . . . . . . . . Exploration | -11 -10 -10 -10 -9 -8 -8 -8 -7 -7 -7 -7 -6 -6 -6 -6 -6 -5 -5 -5 -5 -5 -5 -4 -4 -4 -4 -3 -3 -2 -1 ------------- Run | Yrd Mat Min Exi Min Mat Sto Gar Fac Low Low Dat Pro Fac Low Low Zio Pro Fac Ext Cet Arc Hub Fac Upp Upp Zhi Pro Res Res Acc Turns Passed 23363 | 163 2438 2042 867 319 3968 3518 1152 776 188 45 21 96 1540 74 204 235 249 998 437 210 542 192 1191 63 88 82 410 882 143 230 Spaces Moved 22878 | 72 753 627 271 100 1277 1166 394 1482 488 194 88 338 2879 269 496 979 651 2278 693 288 256 599 2549 262 275 196 1072 1190 254 442 Core 83 | 7 . . . . . . . 3 . . . . . . . . . . 2 . 69 2 . . . . . . . . Treads 4663 | 65 753 627 271 100 1277 1166 394 1 . . . . . . . . . . . . 9 . . . . . . . . . Legs . | . . . . . . . . . . . . . . . . . . . . . . . . . . . . . . . Wheels . | . . . . . . . . . . . . . . . . . . . . . . . . . . . . . . . Hover 1072 | . . . . . . . . 5 . . . . . . . . . . . . . . . . . . . 1067 . . Flight 17060 | . . . . . . . . 1473 488 194 88 338 2879 269 496 979 651 2278 691 288 178 597 2549 262 275 196 1072 123 254 442 Fastest Speed 5 | 50 160 320 320 320 240 230 232 23 23 23 23 5 5 23 23 23 23 21 21 21 21 21 18 24 24 24 11 30 34 31 Average Speed 75 | 149 293 320 320 320 244 234 241 31 23 23 23 22 22 23 23 23 23 22 22 22 154 22 22 24 24 24 23 50 34 32 Slowest Speed 750 | 160 320 320 320 320 320 240 320 250 88 23 23 23 91 23 23 23 23 91 500 92 750 450 24 24 24 101 30 110 39 34 Overloaded Moves 133 | . . . . . . . . . . . . 13 20 . . . . . . . . . . . . . 93 7 . . Propulsion Burnouts . | . . . . . . . . . . . . . . . . . . . . . . . . . . . . . . . Robots Hopped 36 | . . . . . . . . . . . . . 13 . . . . 5 3 . . 3 12 . . . . . . . Cave-ins Triggered . | . . . . . . . . . . . . . . . . . . . . . . . . . . . . . . . Exploration Rate (%) 58 | 5 89 98 61 30 89 94 58 41 57 33 70 62 70 52 52 85 80 49 55 82 84 54 68 54 44 60 83 43 8 15 Regions Visited 30 Branch Regions 20 Pre-discovered Areas 18 | . 1 2 1 . 1 1 . 2 1 . 1 1 . . . 2 . 1 . . . . 1 . . 3 . . . . Known Exits Taken 19 | . 1 . 1 1 . 1 . 1 1 1 . . 1 1 . . 1 1 1 . 1 1 1 1 1 . 1 . 1 . Unknown Exits Taken 10 | 1 . 1 . . 1 . . . . . 1 1 . . 1 1 . . . 1 . . . . . 1 . 1 . . Scrap Searched 20 | . . 1 . . . . . . 3 . . . . 2 4 5 3 . . . . . . 1 . . 1 . . . Spaces Dug 243 | . . . . . 6 . . 14 5 . . 2 50 . 2 . 22 39 18 . . 2 49 . 10 . 4 11 3 6 Terrain Destroyed 404 | . . . . . 20 16 49 14 5 . . 2 51 . 2 . 22 62 24 . 5 2 49 . 10 . 28 34 3 6 Melee 149 | . . . . . 1 . . 14 . . . 2 38 . 2 . 12 31 5 . . 2 30 . 3 . 2 . 3 4 Projectile 109 | . . . . . 1 . . . . . . . 13 . . . 10 10 19 . 5 . 19 . 7 . 2 21 . 2 AOE 146 | . . . . . 18 16 49 . 5 . . . . . . . . 21 . . . . . . . . 24 13 . . Terrain Rammed . | . . . . . . . . . . . . . . . . . . . . . . . . . . . . . . . Walls Destroyed . | . . . . . . . . . . . . . . . . . . . . . . . . . . . . . . . Machines Disabled . | . . . . . . . . . . . . . . . . . . . . . . . . . . . . . . . Actions | -11 -10 -10 -10 -9 -8 -8 -8 -7 -7 -7 -7 -6 -6 -6 -6 -6 -5 -5 -5 -5 -5 -5 -4 -4 -4 -4 -3 -3 -2 -1 --------- Run | Yrd Mat Min Exi Min Mat Sto Gar Fac Low Low Dat Pro Fac Low Low Zio Pro Fac Ext Cet Arc Hub Fac Upp Upp Zhi Pro Res Res Acc Total 27435 | 98 891 653 274 101 1902 1749 488 1730 547 193 87 353 3597 279 567 986 716 2668 925 423 345 639 3037 261 284 215 1205 1420 290 512 Wait 2765 | . 29 . . . 363 369 12 115 41 . . 12 559 8 52 5 19 242 145 121 20 31 353 . . . 93 124 9 43 Move 22779 | 71 752 626 270 99 1276 1166 393 1481 487 193 87 337 2855 268 495 978 650 2267 686 287 255 592 2524 261 274 195 1071 1189 253 441 Hop 33 | . . . . . . . . . . . . . 10 . . . . 5 3 . . 3 12 . . . . . . . Pick Up 185 | 6 32 7 1 . 27 11 2 14 1 . . . 18 1 2 . 3 16 . . 3 1 15 . . 1 4 11 3 6 Fast Attach 133 | 7 1 1 . . 12 12 6 13 2 . . . 10 . 1 . 2 10 1 4 10 . 7 . . 4 3 16 7 4 Attach 78 | . . . . 2 6 2 3 7 . . . . 16 . . . 4 10 . . 1 1 5 . . . 9 10 2 . Detach 37 | . . . . . . . . 1 . . . . 7 . . . 5 7 . 2 2 . 1 . . . 5 6 1 . Swap 207 | 1 9 3 . . 32 30 5 13 6 . . 2 26 . 4 1 . 21 2 . 10 . 27 . . 3 1 5 1 5 Drop 267 | . 17 9 3 . 42 32 7 39 3 . . . 16 1 2 . 5 20 1 3 12 1 19 . . 4 3 18 6 4 Fire 527 | 13 47 6 . . 131 115 58 2 1 . . . 18 . . . 10 11 21 . 17 . 20 . 7 . 9 38 . 3 Melee 334 | . . . . . 1 . . 45 6 . . 2 62 1 11 2 18 53 16 6 15 10 54 . 3 8 7 . 8 6 Ram 3 | . . . . . . . . . . . . . . . . . . . . . . . . . . . . 3 . . Kick . | . . . . . . . . . . . . . . . . . . . . . . . . . . . . . . . Crush 15 | . 4 1 . . 6 4 . . . . . . . . . . . . . . . . . . . . . . . . Escape Stasis 17 | . . . . . . . 2 . . . . . . . . . . . 15 . . . . . . . . . . . Rewire 35 | . . . . . . . . . . . . . . . . . . . 35 . . . . . . . . . . . Trap 12 | . . . . . 6 . . . . . . . . . . . . 6 . . . . . . . . . . . . Miscellaneous 8 | . . . . . . 8 . . . . . . . . . . . . . . . . . . . . . . . . Route ------- -11/Scrapyard -10/Materials (discovered 6 exits: *Mat x3 / *Min x2 / Sub) -10/Mines (discovered 4 exits: *Mat x2 / *Exi / *Sub) -10/Exiles (discovered 2 exits: *Min x2) -9/Mines -8/Materials (discovered 4 exits: *Fac x3 / *Sto) -8/Storage (discovered 3 exits: *Fac / Rec / Gar) -8/Garrison (discovered 3 exits: *Fac x3) -7/Factory (discovered 3 exits: *Fac x2 / *Low) -7/Lower Caves -7/Lower Caves -7/Data Miner -6/Proximity Caves -6/Factory (discovered 6 exits: *Fac x4 / *Low x2) -6/Lower Caves -6/Lower Caves -6/Zion -5/Proximity Caves -5/Factory (discovered 7 exits: *Fac x3 / Upp x2 / *Ext x2) -5/Extension (discovered 3 exits: *Fac x2 / *Cet) -5/Cetus (discovered 2 exits: *Fac / *Arc) -5/Archives (discovered 3 exits: *Fac / *Hub x2) -5/Hub_04(d) (discovered 4 exits: *Fac x4) -4/Factory (discovered 5 exits: *Res x2 / *Upp x2 / Arm) -4/Upper Caves -4/Upper Caves (discovered 2 exits: *Res / *Zhi) -4/Zhirov -3/Proximity Caves -3/Research (discovered 3 exits: *Res / *Qua x2) -2/Research (discovered 3 exits: *Acc x3) -1/Access To Epsilon Eridani History --------- Turn | Location | Event 35 | -11/Scrapyard | Discovered new exit (range 15) 164 | -11/Scrapyard | Entered Materials 279 | -10/Materials | Discovered new exit (range 7) 318 | -10/Materials | Build established: Mutant 527 | -10/Materials | Discovered new exit (range 15) 1956 | -10/Materials | Identified exit to Mines 1989 | -10/Materials | Identified exit to Materials 1989 | -10/Materials | Identified exit to Subcaves 2031 | -10/Materials | Learned 2 Storage zone layouts 2034 | -10/Materials | Learned 2 Storage zone layouts 2602 | -10/Materials | Entered Mines 2623 | -10/Mines | Met a Derelict bent on vengeance 3234 | -10/Mines | Met a Derelict shopkeep closing up shop 3690 | -10/Mines | Learned location of Storage (-8) 4009 | -10/Mines | Learned Materials trap positions 4160 | -10/Mines | Received a Rocket Launcher from a helpful Derelict 4567 | -10/Mines | Discovered exit to Subcaves (range 6) 4628 | -10/Mines | Deemed a non-threat by the Exiles lab entrance 4628 | -10/Mines | Discovered new exit (range 5) 4644 | -10/Mines | Entered Exiles 4645 | -10/Exiles | Identified exit to Mines 4728 | -10/Exiles | Met 8R-AWN 4776 | -10/Exiles | Met EX-HEX 4879 | -10/Exiles | Met EX-BIN 4994 | -10/Exiles | Met EX-DEC 5010 | -10/Exiles | Learned location of Zion (-6) 5109 | -10/Exiles | Aligned with FarCom system 5113 | -10/Exiles | Given EX-Vault access code 5186 | -10/Exiles | Opened EX-Vault 5209 | -10/Exiles | Found 0b10 Alert Chip 5277 | -10/Exiles | Warned to stay clear of 0b10 Research branches 5317 | -10/Exiles | Exiles lab attacked by MAIN.C 5511 | -10/Exiles | Left Exiles lab with 0b10 Alert Chip 5511 | -10/Exiles | Entered Mines 5512 | -9/Mines | Identified exit to Materials 5830 | -9/Mines | Entered Materials 5830 | -8/Materials | Evolved 4 slots: Propulsion x2, Utility x2 5831 | -8/Materials | Loaded intel: 12 trap records 6440 | -8/Materials | Garrison activated, responded to threat 6871 | -8/Materials | Build established: Scavenger-Mutant 7981 | -8/Materials | Discovered new exit (range 20) 8052 | -8/Materials | Learned location of Recycling (-8) 8118 | -8/Materials | Identified exit to Factory 8175 | -8/Materials | Learned Factory garrison access intel 8223 | -8/Materials | Learned Factory security intel 8260 | -8/Materials | Learned Factory interactive machine intel 8309 | -8/Materials | Learned 4 Factory zone layouts 8368 | -8/Materials | Learned location of 1 exit from Lower Caves 8431 | -8/Materials | Discovered exit to Factory (range 4) 9208 | -8/Materials | Discovered exit to Factory (range 14) 9798 | -8/Materials | Entered Storage 9799 | -8/Storage | Identified exit to Recycling 11150 | -8/Storage | Repaired Enh. Autogun 11281 | -8/Storage | Assisted by bots powering up and referring to "LRC-V3" 11582 | -8/Storage | Build established: Commander-Mutant 12550 | -8/Storage | Lost 3 allies 12998 | -8/Storage | First assault squad dispatched 13100 | -8/Storage | Lost 4 allies 13316 | -8/Storage | Identified exit to Garrison 13316 | -8/Storage | Entered Garrison 13338 | -8/Garrison | Build established: Mutant 13402 | -8/Garrison | Triggered checkpoint 13406 | -8/Garrison | Triggered checkpoint 13456 | -8/Garrison | Destroyed 11 combat bots 13483 | -8/Garrison | Triggered checkpoint 13545 | -8/Garrison | Discovered exit to Factory (range 38) 13545 | -8/Garrison | Discovered exit to Factory (range 69) 13545 | -8/Garrison | Discovered exit to Factory (range 61) 14082 | -8/Garrison | Triggered checkpoint 14171 | -8/Garrison | Core integrity fell below 50% 14468 | -8/Garrison | Entered Factory 14468 | -7/Factory | Evolved 2 slots: Propulsion x1, Utility x1 14469 | -7/Factory | Identified exit to Lower Caves 14471 | -7/Factory | Loaded intel: 52 interactive machine locations 14472 | -7/Factory | Loaded intel: 4 garrison access locations 14562 | -7/Factory | Allied Derelicts emerged from ambush trap array 14759 | -7/Factory | Build established: Hacker-Mutant 14909 | -7/Factory | Learned 4 Extension zone layouts 14964 | -7/Factory | Learned 2 Lower Caves zone layouts 14968 | -7/Factory | Discovered new exit (range 6) 14980 | -7/Factory | Learned location of Upper Caves (-4) 15013 | -7/Factory | Learned 4 Factory zone layouts 15125 | -7/Factory | Discovered new exit (range 22) 15125 | -7/Factory | Central database locked down 15200 | -7/Factory | Fabricated Imp. Flight Unit (x1) 15216 | -7/Factory | Build established: Hacker-Sprinter 15244 | -7/Factory | Entered Lower Caves 15245 | -7/Lower Caves | Identified exit to Lower Caves 15250 | -7/Lower Caves | Met a Warlord Commander 15251 | -7/Lower Caves | Learned location of Warlord (-5) 15252 | -7/Lower Caves | Warlord Commander delivered Encrypted Comm Array 15256 | -7/Lower Caves | Found Encrypted Comm Array 15284 | -7/Lower Caves | Encountered a Warlord checkpoint 15426 | -7/Lower Caves | Lost 3 allies 15432 | -7/Lower Caves | Entered another Lower Caves area 15456 | -7/Lower Caves | Identified exit to Data Miner 15470 | -7/Lower Caves | Learned 4 Factory zone layouts 15477 | -7/Lower Caves | Entered Data Miner 15477 | -7/Data Miner | Discovered new exit (range 6) 15482 | -7/Data Miner | Met Data Miner 15487 | -7/Data Miner | Learned location of Section 7 (-3) 15487 | -7/Data Miner | Acquired the access code to Warlord's prototype stash 15491 | -7/Data Miner | Received God Mode back door access code from Data Miner 15498 | -7/Data Miner | Entered Proximity Caves 15512 | -6/Proximity Caves | Spotted B-75 Beast 15571 | -6/Proximity Caves | Learned Factory security intel 15588 | -6/Proximity Caves | Discovered new exit (range 3) 15594 | -6/Proximity Caves | Entered Factory 15594 | -6/Factory | Evolved 2 slots: Utility x1, Weapon x1 15595 | -6/Factory | Identified exit to Factory 15635 | -6/Factory | Spotted B-75 Beast 15769 | -6/Factory | Repaired Mic. Nuclear Core 15792 | -6/Factory | Discovered exit to Factory (range 3) 15867 | -6/Factory | Fabricated Cld. VTOL Module (x1) 16002 | -6/Factory | Fabricated ECM Suite (x2) 16219 | -6/Factory | Repaired Broken Cld. VTOL Module? 16397 | -6/Factory | Repaired Imp. Light Armor Plating 16482 | -6/Factory | Discovered new exit (range 14) 16509 | -6/Factory | Learned Hub_04(d) security intel 16581 | -6/Factory | Learned Extension trap positions 16632 | -6/Factory | Repaired Cld. VTOL Module 16642 | -6/Factory | Learned location of 2 exits from Archives 16694 | -6/Factory | Learned location of 1 exit from Lower Caves 16737 | -6/Factory | Learned Extension stockpile data 16771 | -6/Factory | Learned Extension emergency access door positions 16771 | -6/Factory | Identified exit to Lower Caves 16813 | -6/Factory | Learned 2 Proximity Caves zone layouts 16834 | -6/Factory | Repaired Lgt. Fission Core 16864 | -6/Factory | Learned Extension emergency access door positions 16927 | -6/Factory | Learned 2 Upper Caves zone layouts 16970 | -6/Factory | Repaired Cld. VTOL Module 17134 | -6/Factory | Entered Lower Caves 17135 | -6/Lower Caves | Identified exit to Lower Caves 17174 | -6/Lower Caves | Attracted the attention of an 0b10 outpost 17180 | -6/Lower Caves | Attacked by a delusional Derelict stockpiling parts 17208 | -6/Lower Caves | Entered another Lower Caves area 17284 | -6/Lower Caves | Spotted B-75 Beast 17347 | -6/Lower Caves | Discovered new exit (range 3) 17348 | -6/Lower Caves | Encountered a Warlord checkpoint 17412 | -6/Lower Caves | Entered Zion 17439 | -6/Zion | Discovered new exit (range 14) 17483 | -6/Zion | Given the Hacking Drone Bay 17487 | -6/Zion | Received a hallucinogenic algorithm 17508 | -6/Zion | Learned location of Quarantine (-3) 17522 | -6/Zion | Rebuked by Imprinter 17561 | -6/Zion | Given A8's code to call for help 17608 | -6/Zion | Visited the Megawrench Repair Shop 17608 | -6/Zion | Megawrench repaired 8 parts 17647 | -6/Zion | Entered Proximity Caves 17703 | -5/Proximity Caves | Unaware initiated a cargo recovery operation 17720 | -5/Proximity Caves | Found Prototype Processor 17740 | -5/Proximity Caves | Learned 8 Factory zone layouts 17747 | -5/Proximity Caves | Learned Factory stockpile data 17896 | -5/Proximity Caves | Entered Factory 17896 | -5/Factory | Evolved 2 slots: Utility x1, Weapon x1 17897 | -5/Factory | Identified exit to Upper Caves 17928 | -5/Factory | Discovered new exit (range 16) 17988 | -5/Factory | Identified exit to Extension 18110 | -5/Factory | Identified Spectral Analyzer 18149 | -5/Factory | Central database locked down 18187 | -5/Factory | Discovered new exit (range 9) 18195 | -5/Factory | Learned location of 1 exit from Upper Caves 18230 | -5/Factory | Learned Research emergency access door positions 18239 | -5/Factory | Fabricated Adv. Hacking Suite (x1) 18254 | -5/Factory | Learned location of 2 exits from Upper Caves 18266 | -5/Factory | Loaded intel: 222 non-interactive machine locations 18270 | -5/Factory | Learned Quarantine non-interactive machine intel 18271 | -5/Factory | Learned Extension emergency access door positions 18272 | -5/Factory | Learned Extension security intel 18273 | -5/Factory | Learned Extension trap positions 18332 | -5/Factory | Loaded intel: 89 trap records 18484 | -5/Factory | Fabricated Adv. Hacking Suite (x1) 18607 | -5/Factory | Spotted B-75 Beast 18663 | -5/Factory | Discovered new exit (range 8) 18691 | -5/Factory | Cargo convoy interrupted 18739 | -5/Factory | Found Prototype Device 18739 | -5/Factory | Identified Exp. Transmission Jammer 18742 | -5/Factory | Found Prototype Device 18742 | -5/Factory | Identified Thermal Barrier 18748 | -5/Factory | Found PL-3XN's Ring of Power 18894 | -5/Factory | Entered Extension 18895 | -5/Extension | Identified exit to Factory 18896 | -5/Extension | Identified exit to Cetus 18897 | -5/Extension | Loaded intel: 21 trap records 18953 | -5/Extension | Rescued a captive Derelict 18954 | -5/Extension | Rescued a captive Derelict 19038 | -5/Extension | Rescued A7 19238 | -5/Extension | Rescued a captive Derelict 19256 | -5/Extension | Rescued a captive Derelict 19331 | -5/Extension | Entered Cetus 19331 | -5/Cetus | Accompanied by 14 allies (A7) 19336 | -5/Cetus | Acquired a Cetus Manufacturing Module code from A7 19354 | -5/Cetus | Spotted Cetus Guard 19355 | -5/Cetus | Spotted Cetus Guard 19355 | -5/Cetus | Spotted Cetus Guard 19361 | -5/Cetus | Allies destroyed Cetus Guard 19368 | -5/Cetus | Allies destroyed Cetus Guard 19370 | -5/Cetus | Allies destroyed Cetus Guard 19389 | -5/Cetus | Cetus Manufacturing Module disabled 19395 | -5/Cetus | Lost 8 allies 19404 | -5/Cetus | Failed to start Cetus Manufacturing Module 19424 | -5/Cetus | Discovered new exit (range 16) 19461 | -5/Cetus | Spotted Cetus Guard 19461 | -5/Cetus | Spotted Cetus Guard 19461 | -5/Cetus | Spotted Cetus Guard 19485 | -5/Cetus | Discovered exit to Factory (range 16) 19487 | -5/Cetus | Met Revision 17 19541 | -5/Cetus | Entered Archives 19541 | -5/Archives | Accompanied by 3 allies (A7) 19542 | -5/Archives | Identified exit to Hub_04(d) 19726 | -5/Archives | Discovered exit to Hub_04(d) (range 14) 19758 | -5/Archives | Unable to access archive contents 20041 | -5/Archives | Build established: Wizard-Mutant 20083 | -5/Archives | Entered Hub_04(d) 20177 | -5/Hub_04(d) | Discovered exit to Factory (range 4) 20177 | -5/Hub_04(d) | Spotted B-75 Beast 20275 | -5/Hub_04(d) | Entered Factory 20275 | -4/Factory | Evolved 2 slots: Propulsion x1, Utility x1 20349 | -4/Factory | Identified exit to Upper Caves 20349 | -4/Factory | Identified exit to Armory 20475 | -4/Factory | Fabricated Imp. Light Armor Plating (x2) 20546 | -4/Factory | Build established: Wizard-Sprinter 20778 | -4/Factory | Fabricated Exp. Terrain Scan Processor? 21096 | -4/Factory | Learned 2 Proximity Caves zone layouts 21115 | -4/Factory | Discovered new exit (range 15) 21141 | -4/Factory | Spotted B-86 Titan 21178 | -4/Factory | Learned Armory repair station intel 21204 | -4/Factory | Learned Armory stockpile data 21222 | -4/Factory | Learned Testing stockpile data 21251 | -4/Factory | Identified exit to Research 21290 | -4/Factory | Learned 2 Upper Caves zone layouts 21451 | -4/Factory | Fabricated Cld. Nuclear Pulse Thruster (x1) 21466 | -4/Factory | Entered Upper Caves 21467 | -4/Upper Caves | Identified exit to Upper Caves 21529 | -4/Upper Caves | Entered another Upper Caves area 21530 | -4/Upper Caves | Identified exit to Zhirov 21542 | -4/Upper Caves | Learned location of 1 exit from Research 21570 | -4/Upper Caves | Spotted B-86 Titan 21592 | -4/Upper Caves | Encountered a Warlord checkpoint 21603 | -4/Upper Caves | Learned Research stockpile data 21617 | -4/Upper Caves | Entered Zhirov 21617 | -4/Zhirov | Discovered new exit (range 4) 21622 | -4/Zhirov | Met Zhirov 21626 | -4/Zhirov | Learned location of Testing (-2) 21626 | -4/Zhirov | Learned location of Command (-1) 21631 | -4/Zhirov | Zhirov requested help retrieving the SGEMP Prototype 21636 | -4/Zhirov | Found Alien Artifact 21636 | -4/Zhirov | Identified Integrated Dissipator 21636 | -4/Zhirov | Installed Integrated Dissipator, increased core heat dissipation (+20) 21687 | -4/Zhirov | Found Alien Artifact 21699 | -4/Zhirov | Entered Proximity Caves 21781 | -3/Proximity Caves | Spotted B-86 Titan 21890 | -3/Proximity Caves | Lost 4 parts (2p2u) 22102 | -3/Proximity Caves | Core integrity fell below 50% 22105 | -3/Proximity Caves | Discovered exit to Research (range 15) 22109 | -3/Proximity Caves | Entered Research 22109 | -3/Research | Evolved 2 slots: Propulsion x1, Utility x1 22110 | -3/Research | Identified exit to Quarantine 22135 | -3/Research | Lost 9 parts (1p5n2u1w) 22399 | -3/Research | Identified Transdimensional Reconstructor 22521 | -3/Research | Discovered exit to Quarantine (range 9) 22667 | -3/Research | Build established: Hacker-Mutant 22844 | -3/Research | Discovered new exit (range 14) 22932 | -3/Research | Found Prototype Hackware 22932 | -3/Research | Identified Exp. Hacking Suite 22991 | -3/Research | Entered another Research area 22991 | -2/Research | Evolved 2 slots: Propulsion x1, Weapon x1 23016 | -2/Research | Lost 3 parts (1n2w) 23052 | -2/Research | Identified exit to Access 23134 | -2/Research | Entered Access 23134 | -1/Access | Evolved 2 slots: Propulsion x1, Weapon x1 23141 | -1/Access | Identified exit to Surface 23143 | -1/Access | Found Prototype Processor 23143 | -1/Access | Identified Exp. Core Analyzer 23298 | -1/Access | Spotted B-99 Colossus 23364 | *** | Escaped! Last Messages --------------- 23314_ Sneak attack on T-07 Excavator. 23314_ T-07 Excavator destroyed. 23317_ Acquired 10 matter. 23320_ Dropped Terrain Scanner. 23328_ Knocked back. 23344_ O-32 Director: "IFF HANDSHAKE FAILED. SECURING TERMINAL." 23346_ K-01 Serf cleans the Terminal. 23346_ O-32 Director uses terminal to summon reinforcements. 23346_ ALERT: Hostiles spotted, dispatching reinforcements to Terminal A019. 23346_ O-32 Director locks terminal. 23361_ Connecting with Terminal... >>Open(Door) Sealed Barrier opened. 23363_ The Access Shell folds into the floor. 23364_ ALERT: Suspicious intruders detected, dispatching Cutter reinforcements to area. [Achievement: Super Mutant] Map ----- +----------------------------------------------------+ | ??????????????????? ??# ? # """ """ # | | ????????????????? ? ??# # # | | ?????????????########## ?# # | | ????????????? ?# # | | ???????????? # # | | ???????????? # # | | ???????????? + # | | ????????????????####### # # | | ???????????????????#??# # # | | ??????????????#?###???# ################# "" " | | ??????????????????#?? ??? ?#########?### ""T" | | ??????????????????#? ? ? ###?########## """ | | ????????????????#?## ???#?######??#### | | ?????????????????### ?? ?#####?####### | | ???????????????????# BB BB ?##?##?############# | | ???????????????????# BB? ?BB??#?###?####?##?#?#?# | | ???????????????????# ?#?################## | | ???????????H?????#?#""???"????##?#?##############? | | ?????????????????#????""""""""#????########?###### | | ???????????????????#??????"??"#####??#???#?##?#?## | | ???????????????????#""""""""""#??##??#??###?##?### | | ????????????????#??# #?????##????#?#?#?#? | | ????????????????#??# #?##??#??#??#?#?#### | | ??????????????#??#?# ######??????######## | | ???????????? ##??## "" ###????????#?####### | | ????????? ?????### "@ ##?####?##??#?###### | | ?????????? ? #????# ######?###?##### | | ???????????? ??????# #??#??########## | | ?????????? ? ?##??## #??#### # | | ???????? ???? #???## ####??# # | | ???????????? ?#??# ###### " ## # | | ???????????? #?#?##"" #####?# """ ## # | | ?????????? ? #??###"" ##?#### """ ## # | | ???????????????###?#"" #?#?### " ## # | | ??????????? ??#?#?##T #??#?## ## # | | ?????????? ?? #??###"" #?#?### ## # | | ??????????? ??##?##"" ##?#### ## # | | ????????? ? ??#?#??#"" ############+### | | ????????????? "" | | ?????????? T" | | ?????????#?################################### | | ??????????????????#?###??#?#??#?#??############### | | ?????????#?#?#??##?#?####???###?##?#?##?########?# | | ?????????????????#?##???#?#?#?#?###????######?#### | | ???????????#??????????##?##?####???##?####?####### | | ?????????????#???##?#??####?#?###?########?####### | | ????????????###?????????####?###?#######?#?####### | | ????????????????###??##??##???#?#???####?#?##?###? | | ???????????????#?#?#?###?????#?####?#####??#####?# | | ?????????????????##?#??????#??#?#?##?########?###? | +----------------------------------------------------+ Best States ------------- Heat Dissipation 78 Coolant Potential 100 Energy Generation 23 Energy Capacity 770 Matter Stores 300 Matter Capacity 300 Sight Range 24 Terrain Scan Range 24 Terrain Scan Density 1010 ECM Strength 1 Jamming Range 22 Armor Coverage 600 Evasion (%) 75 Recoil Reduction 4 Offensive Hacking 64 Defensive Hacking 24 Authchip Count 1 Trap Extractor Capacity 6 Item Schematics ----------------- Imp. Flight Unit | -8/Materials | Hacked Imp. Light Armor Plating | -8/Materials | Scanalyzed Hacking Suite | -8/Materials | Scanalyzed Enh. Autogun | -8/Materials | Scanalyzed Nuclear Pulse Array | -7/Factory | Scanalyzed Imp. Cooling System | -7/Factory | Hacked ECM Suite | -7/Factory | Hacked Imp. EM Pulse Cannon | -7/Factory | Hacked Lrn. Proton Cannon | -7/Factory | Hacked Combat Drone Bay | -7/Data Miner | Free Lgt. Regenerative Plating | -7/Data Miner | Free Cld. Aerolev Unit | -7/Data Miner | Free Gravity Neutralizer | -7/Data Miner | Free Imp. Heavy Machine Gun | -7/Data Miner | Free Cmb. Gravmag System | -7/Data Miner | Free Imp. Launcher Guidance Computer | -7/Data Miner | Free Imp. Remote Datajack | -7/Data Miner | Free Cld. VTOL Module | -6/Factory | Scanalyzed Imp. Fusion Compressor | -6/Factory | Hacked Adv. Melee Analysis Suite | -6/Zion | Archive Imp. Coolant Injector | -6/Zion | Archive Point Defense System | -6/Zion | Archive Fission Core | -6/Zion | Archive Imp. Thermal Shield | -6/Zion | Archive Phase Shifter | -6/Zion | Archive Impulse Thruster | -6/Zion | Archive Adv. Thermal Shield | -6/Zion | Archive Phase Cannon | -6/Zion | Archive Imp. Kinecellerator | -6/Zion | Archive Flexi-carbon Leg | -6/Zion | Archive Arm. Medium Treads | -6/Zion | Archive Imp. Trap Scanner | -6/Zion | Archive Neutrino Core | -6/Zion | Archive Adv. Hacking Suite | -5/Factory | Hacked Spectral Analyzer | -5/Factory | Scanalyzed Adv. Reaction Control System | -5/Factory | Hacked Adv. VSS Leg | -5/Factory | Hacked Lgt. Fission Core | -5/Hub_04(d) | Hacked Exp. Terrain Scan Processor | -4/Factory | Hacked Exp. Transmission Jammer | -4/Factory | Scanalyzed Graphene Brace | -4/Factory | Scanalyzed Cld. Nuclear Pulse Thruster | -4/Factory | Hacked Assault Drone Bay | -4/Zhirov | Free Exp. Heat Sink | -4/Zhirov | Free Exp. Optical Array | -4/Zhirov | Free Imp. Arc Thrower | -4/Zhirov | Free Robot Schematics ------------------ S-27 Virus | -7/Data Miner | Free I-36 Angel | -7/Data Miner | Free R-10 Processor | -7/Data Miner | Free H-55 Commando | -7/Data Miner | Free B-48 Gladiator | -6/Zion | Archive G-50 Soldier | -6/Zion | Archive A-15 Conveyor | -6/Zion | Archive X-77 Beamer | -6/Zion | Archive Fabricated ------------ Imp. Flight Unit | x1 | -7/Factory | Authchip Cld. VTOL Module | x1 | -6/Factory | Authchip ECM Suite | x2 | -6/Factory Adv. Hacking Suite | x1 | -5/Factory Adv. Hacking Suite | x1 | -5/Factory | Authchip Imp. Light Armor Plating | x2 | -4/Factory Exp. Terrain Scan Processor | x1 | -4/Factory | Authchip Cld. Nuclear Pulse Thruster | x1 | -4/Factory Alien Tech Used ----------------- Integrated Dissipator Achievements -------------- Super Mutant Challenges ------------ Unstable Evolution Game ------ Seed NeutrinoControlGreatsword Manual? 0 Play Time 05:09:09 Cumulative 262.3 hours Start 2024.08.27 @ 19:33:59 End 2024.08.28 @ 02:03:49 Sessions 5 Manual Loads 0 Difficulty Rogue Special Mode None Game No. 203 Rogue 198 Adventurer 5 Explorer 0 Win Type 0 Total 5 Types 3/0/2/0/0/0/0/0/0 Lore% 64 Gallery% 82 Achievement% 66 Wizard Run 0 Options --------- Layout 2 ASCII 0 Keyboard 0 Movement Mouse Keybinds 0 Fullscreen 2 Font 24/Smallcaps Map View 50x44 Zoom Use 0% Tactical HUD 1 Map Filters NONE Filters NONE Steam 1 RUN: ee725d28-22fb-4fa3-9a15-43bf8c793657